[Event "GrandPrix_29.05"]
[Site "Chess.com"]
[Date "2020.05.29"]
[Round "7"]
[White "AvitalBor"]
[Black "Kezin_Roman"]
[Result "1-0"]
[WhiteElo "2686"]
[BlackElo "2625"]
[TimeControl "600+2"]
[EndTime "12:35:51 PDT"]
[Termination "AvitalBor won by resignation"]

1. e4 {[%clk 0:10:01.9]} 1... c5 {[%clk 0:09:57.5]} 2. c3 {[%clk 0:10:02.4]}
2... d5 {[%clk 0:09:32.7]} 3. exd5 {[%clk 0:10:04.3]} 3... Nf6 {[%clk
0:09:33.6]} 4. c4 {[%clk 0:10:01.4]} 4... e6 {[%clk 0:09:30.8]} 5. dxe6 {[%clk
0:10:01.2]} 5... Bxe6 {[%clk 0:09:32.7]} 6. Nf3 {[%clk 0:10:01.6]} 6... Nc6
{[%clk 0:09:33.8]} 7. Be2 {[%clk 0:10:01]} 7... g6 {[%clk 0:07:51.9]} 8. d3
{[%clk 0:09:44.2]} 8... Bg7 {[%clk 0:07:51.9]} 9. O-O {[%clk 0:09:44.2]} 9...
O-O {[%clk 0:07:52.5]} 10. Nc3 {[%clk 0:09:45.2]} 10... b6 {[%clk 0:07:42]} 11.
Re1 {[%clk 0:09:31.3]} 11... Qd7 {[%clk 0:07:33.6]} 12. Bf4 {[%clk 0:09:18.7]}
12... Nh5 {[%clk 0:07:08]} 13. Bd2 {[%clk 0:08:53.1]} 13... h6 {[%clk
0:06:57.3]} 14. Qc1 {[%clk 0:08:36.3]} 14... Kh7 {[%clk 0:06:57]} 15. Ne4 {[%clk
0:08:34.5]} 15... Rae8 {[%clk 0:05:14]} 16. Bc3 {[%clk 0:08:21]} 16... f5 {[%clk
0:03:54.9]} 17. Ng3 {[%clk 0:07:54.6]} 17... Nf6 {[%clk 0:02:40.5]} 18. Bf1
{[%clk 0:07:47.8]} 18... g5 {[%clk 0:02:22.4]} 19. h4 {[%clk 0:06:52.7]} 19...
f4 {[%clk 0:02:02.9]} 20. Bxf6 {[%clk 0:03:24.3]} 20... fxg3 {[%clk 0:01:33.4]}
21. hxg5 {[%clk 0:03:25.4]} 21... gxf2+ {[%clk 0:01:26.7]} 22. Kxf2 {[%clk
0:03:26.8]} 22... Bxf6 {[%clk 0:01:24.6]} 23. gxf6 {[%clk 0:03:28.7]} 23... Rxf6
{[%clk 0:01:25.4]} 24. Kg1 {[%clk 0:03:06.5]} 24... Rxf3 {[%clk 0:00:14.9]} 25.
gxf3 {[%clk 0:03:08.4]} 25... Rg8+ {[%clk 0:00:16.1]} 26. Kf2 {[%clk 0:03:09.3]}
26... Qd6 {[%clk 0:00:08.3]} 27. f4 {[%clk 0:02:54.9]} 27... Nd4 {[%clk
0:00:07]} 28. Qe3 {[%clk 0:02:48.2]} 28... Rg4 {[%clk 0:00:05.6]} 29. Bg2 {[%clk
0:02:12.1]} 29... Rxf4+ {[%clk 0:00:06.7]} 30. Kg1 {[%clk 0:02:12.9]} 30... Rg4
{[%clk 0:00:07.6]} 31. Rf1 {[%clk 0:01:43.1]} 31... Rg3 {[%clk 0:00:04.6]} 32.
Qe4+ {[%clk 0:01:38.9]} 32... Kg7 {[%clk 0:00:05.8]} 33. Rae1 {[%clk 0:01:28.3]}
33... Bh3 {[%clk 0:00:06.1]} 34. Qe7+ {[%clk 0:00:52.4]} 34... Qxe7 {[%clk
0:00:06.9]} 35. Rxe7+ {[%clk 0:00:53.9]} 35... Kg6 {[%clk 0:00:08.5]} 36. Rf2
{[%clk 0:00:51.8]} 36... Nf5 {[%clk 0:00:07.8]} 37. Re6+ {[%clk 0:00:50.4]}
37... Kg5 {[%clk 0:00:05.9]} 38. Kh2 {[%clk 0:00:42.9]} 38... Bg4 {[%clk
0:00:05.5]} 39. Re5 {[%clk 0:00:23.9]} 39... Rxd3 {[%clk 0:00:06.5]} 40. Be4
{[%clk 0:00:20.8]} 40... Re3 {[%clk 0:00:04.5]} 41. Rexf5+ {[%clk 0:00:20.5]}
41... Bxf5 {[%clk 0:00:05.6]} 42. Bxf5 {[%clk 0:00:21.9]} 42... h5 {[%clk
0:00:04.1]} 43. Bh3 {[%clk 0:00:22.4]} 43... h4 {[%clk 0:00:04.7]} 44. b3 {[%clk
0:00:23.5]} 44... Rd3 {[%clk 0:00:05.2]} 45. Bf1 {[%clk 0:00:24.2]} 45... Rd1
{[%clk 0:00:05.7]} 46. Bg2 {[%clk 0:00:25]} 46... Ra1 {[%clk 0:00:05.6]} 47. Rd2
{[%clk 0:00:25.9]} 47... a5 {[%clk 0:00:06]} 48. Rf2 {[%clk 0:00:26]} 48... a4
{[%clk 0:00:06.2]} 49. bxa4 {[%clk 0:00:25.8]} 49... Rc1 {[%clk 0:00:07.4]} 50.
Bd5 {[%clk 0:00:26.7]} 50... Rb1 {[%clk 0:00:08.7]} 51. Be6 {[%clk 0:00:24.9]}
51... Rb4 {[%clk 0:00:08.3]} 52. Kh3 {[%clk 0:00:23.1]} 52... Rxa4 {[%clk
0:00:08.2]} 53. Rg2+ {[%clk 0:00:21.6]} 53... Kf6 {[%clk 0:00:08.9]} 54. Bd5
{[%clk 0:00:21.7]} 54... Ke5 {[%clk 0:00:08.1]} 55. Rb2 {[%clk 0:00:22.5]} 55...
Kd4 {[%clk 0:00:04.3]} 56. Kxh4 {[%clk 0:00:22.2]} 56... b5 {[%clk 0:00:04.7]}
57. Rxb5 {[%clk 0:00:21.9]} 57... Rxa2 {[%clk 0:00:05.9]} 58. Rb1 {[%clk
0:00:22.1]} 58... Rf2 {[%clk 0:00:05.3]} 59. Rd1+ {[%clk 0:00:23]} 59... Kc3
{[%clk 0:00:06.7]} 60. Kg3 {[%clk 0:00:24.1]} 60... Rf8 {[%clk 0:00:07.5]} 61.
Re1 {[%clk 0:00:24.6]} 61... Rf6 {[%clk 0:00:08.3]} 62. Re4 {[%clk 0:00:25.6]}
62... Kd3 {[%clk 0:00:09.2]} 63. Rf4 {[%clk 0:00:26.6]} 63... Rb6 {[%clk
0:00:03.5]} 64. Rf3+ {[%clk 0:00:26.3]} 64... Kd4 {[%clk 0:00:04.5]} 65. Kf2
{[%clk 0:00:27.4]} 65... Rb2+ {[%clk 0:00:05.1]} 66. Ke1 {[%clk 0:00:28.5]}
66... Rb1+ {[%clk 0:00:06.4]} 67. Kd2 {[%clk 0:00:29.5]} 67... Rb2+ {[%clk
0:00:07.6]} 68. Kc1 {[%clk 0:00:30.1]} 68... Rh2 {[%clk 0:00:09.1]} 69. Rg3
{[%clk 0:00:29.2]} 69... Rf2 {[%clk 0:00:09.4]} 70. Rg2 {[%clk 0:00:29.8]} 70...
Rf1+ {[%clk 0:00:10]} 71. Kd2 {[%clk 0:00:29]} 71... Rf4 {[%clk 0:00:06.7]} 72.
Kc2 {[%clk 0:00:29]} 72... Rh4 {[%clk 0:00:07.5]} 73. Rd2+ {[%clk 0:00:29.4]}
73... Ke5 {[%clk 0:00:07.9]} 74. Kb3 {[%clk 0:00:30.4]} 74... Rh8 {[%clk
0:00:04.5]} 75. Re2+ {[%clk 0:00:28.7]} 75... Kd4 {[%clk 0:00:05.1]} 76. Re4+
{[%clk 0:00:27.3]} 76... Kd3 {[%clk 0:00:05.9]} 77. Rg4 {[%clk 0:00:26.7]} 77...
Rb8+ {[%clk 0:00:06.6]} 78. Ka4 {[%clk 0:00:27.4]} 78... Rb4+ {[%clk 0:00:05.6]}
79. Ka5 {[%clk 0:00:28.2]} 79... Kc3 {[%clk 0:00:05.6]} 80. Rg6 {[%clk 0:00:26]}
80... Rb1 {[%clk 0:00:02.8]} 81. Rb6 {[%clk 0:00:20.1]} 81... Rg1 {[%clk
0:00:03.7]} 82. Kb5 {[%clk 0:00:20.3]} 82... Kd4 {[%clk 0:00:04.9]} 83. Rh6
{[%clk 0:00:18.6]} 83... Rg4 {[%clk 0:00:03.2]} 84. Rh1 {[%clk 0:00:19.3]} 84...
Rg3 {[%clk 0:00:03.2]} 85. Rh4+ {[%clk 0:00:20.1]} 85... Ke5 {[%clk 0:00:05.1]}
86. Kxc5 {[%clk 0:00:21.2]} 1-0

[Event "GrandPrix_29.05"]
[Site "Chess.com"]
[Date "2020.05.29"]
[Round "7"]
[White "Misterlose0"]
[Black "ulkaf961"]
[Result "1/2-1/2"]
[WhiteElo "1652"]
[BlackElo "2075"]
[TimeControl "600+2"]
[EndTime "12:36:21 PDT"]
[Termination "Game drawn by 50-move rule"]

1. d4 {[%clk 0:10:01.9]} 1... d5 {[%clk 0:09:55.9]} 2. c4 {[%clk 0:10:03.1]}
2... c6 {[%clk 0:09:56.2]} 3. cxd5 {[%clk 0:10:03.7]} 3... cxd5 {[%clk
0:09:56.5]} 4. Bf4 {[%clk 0:10:05.6]} 4... Nc6 {[%clk 0:08:35.4]} 5. e3 {[%clk
0:10:06.4]} 5... Bf5 {[%clk 0:08:21.2]} 6. Nc3 {[%clk 0:10:06.7]} 6... Nf6
{[%clk 0:08:16.6]} 7. Qb3 {[%clk 0:10:07.1]} 7... Na5 {[%clk 0:08:15.1]} 8. Qa4+
{[%clk 0:10:05.7]} 8... Bd7 {[%clk 0:08:15.6]} 9. Qc2 {[%clk 0:10:06.9]} 9...
Rc8 {[%clk 0:08:14.5]} 10. Nf3 {[%clk 0:10:05.9]} 10... e6 {[%clk 0:08:12.5]}
11. Bd3 {[%clk 0:10:06]} 11... Bb4 {[%clk 0:08:11.3]} 12. O-O {[%clk 0:10:07]}
12... Nc4 {[%clk 0:08:11.6]} 13. Rac1 {[%clk 0:10:03.1]} 13... Qa5 {[%clk
0:07:31.2]} 14. Ne5 {[%clk 0:09:48.5]} 14... Bxc3 {[%clk 0:05:30.8]} 15. bxc3
{[%clk 0:09:43]} 15... Bb5 {[%clk 0:05:31.6]} 16. Qe2 {[%clk 0:09:10.1]} 16...
a6 {[%clk 0:05:18.7]} 17. Ng4 {[%clk 0:08:43.5]} 17... Ne4 {[%clk 0:04:50.3]}
18. f3 {[%clk 0:07:40]} 18... Nxc3 {[%clk 0:04:35]} 19. Qe1 {[%clk 0:07:40.3]}
19... Nb2 {[%clk 0:04:32.8]} 20. Bxb5+ {[%clk 0:07:35.6]} 20... axb5 {[%clk
0:04:32.7]} 21. Bd6 {[%clk 0:07:03.3]} 21... Nd3 {[%clk 0:03:53]} 22. Qh4 {[%clk
0:07:03.8]} 22... Qd8 {[%clk 0:03:53.3]} 23. Qxd8+ {[%clk 0:06:43.9]} 23... Kxd8
{[%clk 0:03:48.9]} 24. Rc2 {[%clk 0:06:23.7]} 24... Kd7 {[%clk 0:03:03.1]} 25.
Bg3 {[%clk 0:06:10.5]} 25... h5 {[%clk 0:01:47.3]} 26. Ne5+ {[%clk 0:05:54.3]}
26... Nxe5 {[%clk 0:01:47.8]} 27. Bxe5 {[%clk 0:05:50.8]} 27... f6 {[%clk
0:01:48.7]} 28. Bg3 {[%clk 0:05:51.8]} 28... Rc4 {[%clk 0:01:42.8]} 29. Rb2
{[%clk 0:05:23.2]} 29... Kc6 {[%clk 0:01:24.4]} 30. Ra1 {[%clk 0:05:03.3]} 30...
Ra8 {[%clk 0:01:22]} 31. Kf1 {[%clk 0:05:01.4]} 31... Ra3 {[%clk 0:00:54.7]} 32.
Be1 {[%clk 0:04:53]} 32... Ra6 {[%clk 0:00:34.5]} 33. Rc1 {[%clk 0:04:13.6]}
33... Na4 {[%clk 0:00:27]} 34. Rbc2 {[%clk 0:04:14.3]} 34... Kd7 {[%clk
0:00:24]} 35. Ke2 {[%clk 0:04:07.5]} 35... Rac6 {[%clk 0:00:24.7]} 36. Rxc4
{[%clk 0:04:01.6]} 36... bxc4 {[%clk 0:00:25.3]} 37. Bb4 {[%clk 0:03:58]} 37...
Rb6 {[%clk 0:00:20.3]} 38. a3 {[%clk 0:03:58.9]} 38... Kc6 {[%clk 0:00:20.6]}
39. g4 {[%clk 0:03:56.8]} 39... hxg4 {[%clk 0:00:20.6]} 40. fxg4 {[%clk
0:03:58.7]} 40... Ra6 {[%clk 0:00:22]} 41. h4 {[%clk 0:03:58.1]} 41... Ra8
{[%clk 0:00:22.5]} 42. h5 {[%clk 0:03:52.6]} 42... Nb2 {[%clk 0:00:23.1]} 43.
Rg1 {[%clk 0:03:49.3]} 43... Nd3 {[%clk 0:00:23.7]} 44. g5 {[%clk 0:03:50.4]}
44... Rh8 {[%clk 0:00:22]} 45. h6 {[%clk 0:03:48.1]} 45... gxh6 {[%clk
0:00:16.3]} 46. gxf6 {[%clk 0:03:49.1]} 46... Nxb4 {[%clk 0:00:16.3]} 47. axb4
{[%clk 0:03:51]} 47... Rf8 {[%clk 0:00:14.5]} 48. Rg6 {[%clk 0:03:51.1]} 48...
Rf7 {[%clk 0:00:15.8]} 49. Kd2 {[%clk 0:03:50]} 49... h5 {[%clk 0:00:15.6]} 50.
Rh6 {[%clk 0:03:50.2]} 50... Kb5 {[%clk 0:00:16.2]} 51. Kc3 {[%clk 0:03:51]}
51... Ka4 {[%clk 0:00:16.8]} 52. Rg6 {[%clk 0:03:41.3]} 52... h4 {[%clk
0:00:17.2]} 53. Rh6 {[%clk 0:03:19.7]} 53... h3 {[%clk 0:00:14.7]} 54. Rxh3
{[%clk 0:03:11]} 54... Rxf6 {[%clk 0:00:15.5]} 55. Rh7 {[%clk 0:03:12.9]} 55...
b6 {[%clk 0:00:15.7]} 56. Re7 {[%clk 0:03:07]} 56... Kb5 {[%clk 0:00:16.6]} 57.
Re8 {[%clk 0:03:07.9]} 57... Kc6 {[%clk 0:00:16.2]} 58. Rc8+ {[%clk 0:03:05.6]}
58... Kd7 {[%clk 0:00:16.1]} 59. Rb8 {[%clk 0:03:06.9]} 59... Kc7 {[%clk
0:00:16.9]} 60. Re8 {[%clk 0:03:08.4]} 60... Kd7 {[%clk 0:00:17.3]} 61. Rb8
{[%clk 0:03:09.8]} 61... Rf3 {[%clk 0:00:18.3]} 62. Kd2 {[%clk 0:03:02.5]} 62...
Rf2+ {[%clk 0:00:18.7]} 63. Ke1 {[%clk 0:03:03.5]} 63... Rb2 {[%clk 0:00:18.6]}
64. Rxb6 {[%clk 0:03:04]} 64... c3 {[%clk 0:00:18.7]} 65. Kd1 {[%clk 0:03:01.7]}
65... Rf2 {[%clk 0:00:14.2]} 66. b5 {[%clk 0:02:59.1]} 66... Rb2 {[%clk
0:00:13.8]} 67. Rc6 {[%clk 0:02:55.6]} 67... Rxb5 {[%clk 0:00:14.3]} 68. Rxc3
{[%clk 0:02:56.3]} 68... Kd6 {[%clk 0:00:15.4]} 69. Kd2 {[%clk 0:02:57.1]} 69...
e5 {[%clk 0:00:16.3]} 70. dxe5+ {[%clk 0:02:56.8]} 70... Kxe5 {[%clk 0:00:17.5]}
71. Kd3 {[%clk 0:02:58.3]} 71... Rb1 {[%clk 0:00:17.8]} 72. Rc8 {[%clk
0:02:58.6]} 72... Rd1+ {[%clk 0:00:18.7]} 73. Ke2 {[%clk 0:02:59.7]} 73... Rh1
{[%clk 0:00:19.7]} 74. Re8+ {[%clk 0:03:01.1]} 74... Kd6 {[%clk 0:00:20.9]} 75.
Kd3 {[%clk 0:03:03]} 75... Rd1+ {[%clk 0:00:21.6]} 76. Ke2 {[%clk 0:03:03.5]}
76... Ra1 {[%clk 0:00:22.1]} 77. Rh8 {[%clk 0:03:03.9]} 77... Ra2+ {[%clk
0:00:21.1]} 78. Kf3 {[%clk 0:03:04.3]} 78... Ra3 {[%clk 0:00:22.1]} 79. Kf4
{[%clk 0:03:05]} 79... Ra4+ {[%clk 0:00:22.8]} 80. Kf3 {[%clk 0:03:03.9]} 80...
Ke5 {[%clk 0:00:23.4]} 81. Rh5+ {[%clk 0:03:04.1]} 81... Ke6 {[%clk 0:00:24.4]}
82. Rg5 {[%clk 0:03:05.3]} 82... Kd6 {[%clk 0:00:24.9]} 83. Rg8 {[%clk
0:03:03.7]} 83... Ke5 {[%clk 0:00:25.4]} 84. Re8+ {[%clk 0:03:03.8]} 84... Kd6
{[%clk 0:00:26.4]} 85. Kg3 {[%clk 0:03:03]} 85... Rb4 {[%clk 0:00:25.9]} 86. Kf2
{[%clk 0:02:59.9]} 86... Rb2+ {[%clk 0:00:25]} 87. Kf3 {[%clk 0:03:01]} 87...
Rb4 {[%clk 0:00:26.5]} 88. Rg8 {[%clk 0:02:57.5]} 88... Ra4 {[%clk 0:00:27.1]}
89. Rg1 {[%clk 0:02:53.4]} 89... Ke5 {[%clk 0:00:27.5]} 90. Rb1 {[%clk
0:02:54.9]} 90... Rc4 {[%clk 0:00:27.2]} 91. Rb8 {[%clk 0:02:52.8]} 91... Ra4
{[%clk 0:00:27]} 92. Rb3 {[%clk 0:02:49.3]} 92... Rc4 {[%clk 0:00:27.5]} 93. Ra3
{[%clk 0:02:45.1]} 93... Rb4 {[%clk 0:00:28.3]} 94. Rd3 {[%clk 0:02:42.6]} 94...
Ra4 {[%clk 0:00:28.9]} 95. Rd1 {[%clk 0:02:42.6]} 95... Rb4 {[%clk 0:00:29.8]}
96. Rg1 {[%clk 0:02:40.2]} 96... Ra4 {[%clk 0:00:30.4]} 97. Rg5+ {[%clk
0:02:40.2]} 97... Kd6 {[%clk 0:00:30.8]} 98. Rh5 {[%clk 0:02:42.1]} 98... Ke6
{[%clk 0:00:31.8]} 99. Rh8 {[%clk 0:02:41.3]} 99... Ke5 {[%clk 0:00:32.2]} 100.
Rg8 {[%clk 0:02:40.8]} 100... Rb4 {[%clk 0:00:32.2]} 101. Ra8 {[%clk 0:02:40.3]}
101... Rc4 {[%clk 0:00:32.5]} 102. Rb8 {[%clk 0:02:40.5]} 102... Ra4 {[%clk
0:00:33.1]} 103. Rc8 {[%clk 0:02:40.3]} 103... Rb4 {[%clk 0:00:33.8]} 104. Ra8
{[%clk 0:02:41.1]} 104... Rc4 {[%clk 0:00:34.5]} 105. Ke2 {[%clk 0:02:42.2]}
105... Rb4 {[%clk 0:00:33.8]} 106. Kd3 {[%clk 0:02:43.2]} 106... Rh4 {[%clk
0:00:33.3]} 107. Re8+ {[%clk 0:02:42]} 107... Kd6 {[%clk 0:00:33.8]} 108. Rf8
{[%clk 0:02:37.9]} 108... Ra4 {[%clk 0:00:33.6]} 109. Rb8 {[%clk 0:02:38.3]}
109... Rh4 {[%clk 0:00:32]} 110. Ra8 {[%clk 0:02:38.3]} 110... Rb4 {[%clk
0:00:32.1]} 111. Ra3 {[%clk 0:02:36.2]} 111... Rh4 {[%clk 0:00:32.3]} 112. Ra1
{[%clk 0:02:17.1]} 112... Ke5 {[%clk 0:00:31.9]} 113. Rg1 {[%clk 0:02:07]}
113... Ra4 {[%clk 0:00:31.6]} 114. Rg5+ {[%clk 0:02:07.7]} 114... Kd6 {[%clk
0:00:32.3]} 115. Ke2 {[%clk 0:02:04]} 115... Rb4 {[%clk 0:00:32.4]} 116. Rh5
{[%clk 0:02:02.5]} 116... Ra4 {[%clk 0:00:33.1]} 117. Kd3 {[%clk 0:02:03.4]}
117... Rb4 {[%clk 0:00:33.4]} 118. Kc3 {[%clk 0:02:04.1]} 118... Rg4 {[%clk
0:00:33.9]} 119. Rh1 {[%clk 0:02:01.8]} 119... Re4 {[%clk 0:00:33.9]} 120. Rh3
{[%clk 0:01:58.5]} 120... Ra4 {[%clk 0:00:33.9]} 1/2-1/2

[Event "GrandPrix_29.05"]
[Site "Chess.com"]
[Date "2020.05.29"]
[Round "7"]
[White "Shota_Azaladze"]
[Black "Yaroslav_Remizov"]
[Result "0-1"]
[WhiteElo "2179"]
[BlackElo "2201"]
[TimeControl "600+2"]
[EndTime "12:36:44 PDT"]
[Termination "Yaroslav_Remizov won by resignation"]

1. Nf3 {[%clk 0:10:01.9]} 1... d5 {[%clk 0:09:59.9]} 2. g3 {[%clk 0:10:02.7]}
2... Nf6 {[%clk 0:09:58.8]} 3. Bg2 {[%clk 0:10:03.6]} 3... Bg4 {[%clk 0:09:58]}
4. O-O {[%clk 0:10:04.4]} 4... Nbd7 {[%clk 0:09:58.6]} 5. d3 {[%clk 0:10:05.6]}
5... e5 {[%clk 0:09:57.4]} 6. Nbd2 {[%clk 0:10:06.7]} 6... Be7 {[%clk
0:09:53.8]} 7. e4 {[%clk 0:10:07.5]} 7... dxe4 {[%clk 0:09:54.8]} 8. dxe4 {[%clk
0:10:09.4]} 8... O-O {[%clk 0:09:55.6]} 9. h3 {[%clk 0:10:10.6]} 9... Bh5 {[%clk
0:09:56]} 10. Qe1 {[%clk 0:10:11.4]} 10... h6 {[%clk 0:09:35]} 11. Nc4 {[%clk
0:10:10.3]} 11... Bxf3 {[%clk 0:08:58.7]} 12. Bxf3 {[%clk 0:10:10.2]} 12... c6
{[%clk 0:08:58.8]} 13. a4 {[%clk 0:10:08.4]} 13... Qc7 {[%clk 0:08:58.2]} 14.
Qc3 {[%clk 0:10:01.6]} 14... Bc5 {[%clk 0:08:50.9]} 15. Qe1 {[%clk 0:09:50.8]}
15... b5 {[%clk 0:08:30.5]} 16. Na5 {[%clk 0:09:50.6]} 16... Rfc8 {[%clk
0:08:03.1]} 17. Nb3 {[%clk 0:09:46.9]} 17... Bf8 {[%clk 0:07:49.5]} 18. Be3
{[%clk 0:09:47.3]} 18... a6 {[%clk 0:07:47.9]} 19. Qe2 {[%clk 0:09:40.4]} 19...
c5 {[%clk 0:07:32.9]} 20. c4 {[%clk 0:09:35.2]} 20... bxc4 {[%clk 0:07:12.6]}
21. Nd2 {[%clk 0:09:35.3]} 21... Rab8 {[%clk 0:04:44.4]} 22. Nxc4 {[%clk
0:09:30]} 22... Qc6 {[%clk 0:04:43]} 23. Rfd1 {[%clk 0:09:20.8]} 23... Qe6
{[%clk 0:04:04.4]} 24. Bg2 {[%clk 0:08:54.6]} 24... Rb4 {[%clk 0:03:58.9]} 25.
Rdc1 {[%clk 0:08:55.1]} 25... Nb6 {[%clk 0:03:46.3]} 26. Nxb6 {[%clk 0:08:45.7]}
26... Qxb6 {[%clk 0:03:48.2]} 27. a5 {[%clk 0:08:40.4]} 27... Qb7 {[%clk
0:03:48.4]} 28. Rc2 {[%clk 0:08:31.8]} 28... Rb8 {[%clk 0:02:55]} 29. Ra2 {[%clk
0:08:22.9]} 29... Nxe4 {[%clk 0:01:57.9]} 30. Bd2 {[%clk 0:07:57.1]} 30... Qd5
{[%clk 0:01:56.8]} 31. Bxb4 {[%clk 0:07:24.9]} 31... Qxa2 {[%clk 0:01:54.4]} 32.
Be1 {[%clk 0:07:25.3]} 32... Nd6 {[%clk 0:01:25.4]} 33. Qxa6 {[%clk 0:06:05.2]}
33... Rxb2 {[%clk 0:01:25]} 34. Rxb2 {[%clk 0:05:08]} 34... Qxb2 {[%clk
0:01:26.9]} 35. Kf1 {[%clk 0:04:41.9]} 35... c4 {[%clk 0:00:56]} 36. Qb6 {[%clk
0:04:34.8]} 36... Qa1 {[%clk 0:00:43.2]} 37. Qc7 {[%clk 0:03:54.8]} 37... e4
{[%clk 0:00:30.5]} 38. Qc6 {[%clk 0:03:55]} 38... f5 {[%clk 0:00:20.7]} 39. a6
{[%clk 0:03:55.2]} 39... c3 {[%clk 0:00:20.7]} 40. h4 {[%clk 0:03:23.4]} 40...
c2 {[%clk 0:00:17.5]} 41. Qxc2 {[%clk 0:03:21]} 41... Qxa6+ {[%clk 0:00:18.7]}
42. Kg1 {[%clk 0:03:22.6]} 42... Qa1 {[%clk 0:00:19.9]} 43. Kf1 {[%clk
0:03:21.2]} 43... Kh7 {[%clk 0:00:18.1]} 44. h5 {[%clk 0:03:21.3]} 44... Nb5
{[%clk 0:00:16.5]} 45. Qc8 {[%clk 0:02:56.3]} 45... Qf6 {[%clk 0:00:13]} 46. g4
{[%clk 0:02:56.6]} 46... Nd6 {[%clk 0:00:11.3]} 47. Qd7 {[%clk 0:02:46.9]} 47...
f4 {[%clk 0:00:09.9]} 48. f3 {[%clk 0:02:17.2]} 48... e3 {[%clk 0:00:09.2]} 49.
Qc6 {[%clk 0:02:18.2]} 49... Qb2 {[%clk 0:00:06]} 50. Qa6 {[%clk 0:02:12.2]}
50... Qc2 {[%clk 0:00:05.2]} 51. Bh3 {[%clk 0:02:10.9]} 51... Nc4 {[%clk
0:00:05.8]} 52. g5 {[%clk 0:02:10.8]} 52... hxg5 {[%clk 0:00:05.5]} 53. Qe6
{[%clk 0:02:08.5]} 53... Nd2+ {[%clk 0:00:03.2]} 54. Kg2 {[%clk 0:01:46]} 54...
Ne4+ {[%clk 0:00:03]} 55. Kg1 {[%clk 0:01:43.9]} 55... Nd6 {[%clk 0:00:03.9]}
56. Bf1 {[%clk 0:01:34.1]} 56... Qb1 {[%clk 0:00:04.4]} 57. Bc3 {[%clk
0:01:32.7]} 57... Nf5 {[%clk 0:00:04.7]} 58. Qg6+ {[%clk 0:01:28.1]} 58... Kh8
{[%clk 0:00:05.4]} 59. h6 {[%clk 0:01:29.6]} 59... e2 {[%clk 0:00:04.8]} 60.
hxg7+ {[%clk 0:01:29.6]} 60... Bxg7 {[%clk 0:00:05.8]} 61. Bxg7+ {[%clk
0:01:30.9]} 61... Kg8 {[%clk 0:00:06.6]} 62. Bc3+ {[%clk 0:01:19.1]} 62... Kf8
{[%clk 0:00:06]} 63. Qf6+ {[%clk 0:01:17.5]} 63... Ke8 {[%clk 0:00:04.8]} 64.
Qe6+ {[%clk 0:01:18.6]} 64... Kf8 {[%clk 0:00:05]} 65. Qxe2 {[%clk 0:01:18.8]}
65... Ng3 {[%clk 0:00:05.8]} 66. Qf2 {[%clk 0:01:15.1]} 66... Nxf1 {[%clk
0:00:04.3]} 67. Qxf1 {[%clk 0:01:15.9]} 67... Qc2 {[%clk 0:00:05]} 68. Qc4
{[%clk 0:01:05.3]} 68... Qd1+ {[%clk 0:00:04.1]} 69. Kg2 {[%clk 0:01:06.5]}
69... Qc2+ {[%clk 0:00:05.1]} 70. Kh3 {[%clk 0:01:07.5]} 70... Qh7+ {[%clk
0:00:05.6]} 71. Kg2 {[%clk 0:01:08.2]} 71... Qc2+ {[%clk 0:00:05.8]} 72. Kf1
{[%clk 0:01:09.5]} 72... Qb1+ {[%clk 0:00:05.3]} 73. Be1 {[%clk 0:01:09.5]}
73... Qf5 {[%clk 0:00:05.5]} 74. Bb4+ {[%clk 0:01:08.1]} 74... Kg7 {[%clk
0:00:06]} 75. Bc3+ {[%clk 0:01:04.5]} 75... Kf8 {[%clk 0:00:06.7]} 76. Qe2
{[%clk 0:00:51.4]} 76... Qh3+ {[%clk 0:00:06.4]} 77. Ke1 {[%clk 0:00:50.9]}
77... Qh1+ {[%clk 0:00:07.1]} 78. Kd2 {[%clk 0:00:51.9]} 78... Qb1 {[%clk
0:00:06.2]} 79. Qe5 {[%clk 0:00:45.8]} 79... Qa2+ {[%clk 0:00:05.5]} 80. Kd3
{[%clk 0:00:46.7]} 80... Qb1+ {[%clk 0:00:06.5]} 81. Kd4 {[%clk 0:00:46.8]}
81... Qd1+ {[%clk 0:00:07]} 82. Kc5 {[%clk 0:00:47.1]} 82... Qxf3 {[%clk
0:00:07.3]} 83. Qf6+ {[%clk 0:00:41.5]} 83... Ke8 {[%clk 0:00:08.3]} 84. Qe6+
{[%clk 0:00:41.6]} 84... Kf8 {[%clk 0:00:09.1]} 85. Qf5+ {[%clk 0:00:42.7]}
85... Ke8 {[%clk 0:00:08.7]} 86. Qg6+ {[%clk 0:00:43.3]} 86... Ke7 {[%clk
0:00:05.9]} 87. Bf6+ {[%clk 0:00:42.5]} 87... Ke6 {[%clk 0:00:05.5]} 88. Bxg5+
{[%clk 0:00:43]} 88... Ke5 {[%clk 0:00:06.4]} 89. Bf6+ {[%clk 0:00:39]} 89...
Ke6 {[%clk 0:00:07.2]} 90. Bd4+ {[%clk 0:00:34.7]} 90... Ke7 {[%clk 0:00:07.5]}
91. Qg7+ {[%clk 0:00:31.4]} 91... Ke8 {[%clk 0:00:06.5]} 92. Kd6 {[%clk
0:00:28.1]} 92... Qa3+ {[%clk 0:00:06.9]} 93. Ke6 {[%clk 0:00:24.6]} 93... Qa2+
{[%clk 0:00:06]} 94. Ke5 {[%clk 0:00:21.3]} 94... Qf7 {[%clk 0:00:06]} 95. Qh8+
{[%clk 0:00:21.2]} 95... Kd7 {[%clk 0:00:06.9]} 96. Qa8 {[%clk 0:00:20.5]} 96...
Qg7+ {[%clk 0:00:05.2]} 97. Ke4 {[%clk 0:00:21.5]} 97... Qg2+ {[%clk 0:00:05.7]}
98. Kxf4 {[%clk 0:00:22.5]} 98... Qxa8 {[%clk 0:00:07.6]} 99. Ke5 {[%clk
0:00:23.5]} 99... Qa6 {[%clk 0:00:09.1]} 0-1